fUSD/lending_fUSD_20240412
["ID","MTS","AMOUNT","RATE_DAILY","PERIOD"]
[322324329,1712955040046,-154.39587029,0.00035352,13]
[322324332,1712955040057,-154.39587029,0.00035352,13]
[322324335,1712955040066,-6299.96928165,0.00035376,4]
[322324338,1712955040075,-45796.4909,0.00035431,2]
[322324341,1712955040085,-314.041305,0.00035448,39]
[322324344,1712955040094,-1000.0,0.0003553,2]
[322324347,1712955040104,-1241.19748567,0.00035531,4]
[322324350,1712955040113,-1045.58153777,0.00035531,4]
[322324353,1712955040122,-2203.09868202,0.00035531,4]
[322324356,1712955040132,-157.40175635,0.00035531,4]
[322324359,1712955040141,-486.03849486,0.00035531,4]
[322324361,1712955040150,-263.09163061,0.00035531,4]
[322324364,1712955040159,-1969.2080462,0.00035531,4]
[322324367,1712955040169,-597.96032771,0.00035531,4]
[322324370,1712955040178,-155.09007994,0.00035531,4]
[322324373,1712955040187,-180.68788228,0.00035532,4]
[322324376,1712955040196,-189.98655532,0.00035532,4]
[322324379,1712955040205,-230.68118798,0.00035532,4]
[322324382,1712955040214,-379.13,0.00035561,2]
[322324385,1712955040225,-3899.50878365,0.00035678,2]
[322324388,1712955040234,-2621.41572254,0.00035678,2]
[322324391,1712955040243,-314.041305,0.00035748,38]
[322324394,1712955040252,-156.09583247,0.00035766,7]
[322324397,1712955040261,-314.041305,0.00035848,40]
[322324400,1712955040270,-168.06,0.00035909,2]
[322324403,1712955040279,-2288.0,0.00035971,2]
[322324406,1712955040288,-460.0,0.00035971,2]
[322324408,1712955040299,-966.0,0.00035971,2]
[322324412,1712955040308,-435.0,0.00035971,2]
[322324415,1712955040317,-1945.0,0.00035971,2]
[322324418,1712955040326,-806.0,0.00035971,2]
[322324420,1712955040335,-607.0,0.00035971,2]
[322324423,1712955040344,-280.0,0.00035971,2]
[322324427,1712955040355,-1140.0,0.00035971,2]
[322324429,1712955040364,-150.0,0.00035971,2]
[322324432,1712955040373,-1457.0,0.00035971,2]
[322324435,1712955040382,-398.0,0.00035971,2]
[322324437,1712955040391,-3039.0,0.00035971,2]
[322324440,1712955040401,-858.582,0.00035971,2]
[322324444,1712955040410,-214.0,0.00035971,2]
[322324446,1712955040421,-442.0,0.00035971,2]
[322324450,1712955040430,-354.0,0.00035971,2]
[322324454,1712955040440,-150.0,0.00035971,2]
[322324455,1712955040449,-4796.0,0.00035971,2]
[322324457,1712955040460,-1096.557,0.00035971,2]
[322324459,1712955040469,-150.0,0.00035971,2]
[322324461,1712955040478,-150.0,0.00035971,2]
[322324463,1712955040487,-1022.276,0.00035971,2]
[322324465,1712955040496,-314.041305,0.00036148,36]
[322324467,1712955040506,-296.30994071,0.00036427,7]
[322324470,1712955040515,-314.041305,0.00036448,40]
[322324473,1712955040524,-539.0,0.00036575,7]
[322324476,1712955040534,-314.041305,0.00036648,35]
[322324479,1712955040544,-314.041305,0.00036748,39]
[322324482,1712955040554,-150.0,0.00036766,120]
[322324485,1712955040563,-153.6962991,0.00036769,7]
[322324488,1712955040572,-156.09583247,0.00036832,7]
[322324491,1712955040582,-314.041305,0.00036848,41]
[322324494,1712955040591,-166.29662526,0.000369,2]
[322324497,1712955040600,-166.2966251,0.000369,2]
[322324500,1712955040610,-166.2966251,0.000369,2]
[322324503,1712955040620,-166.2966251,0.000369,2]
[322324506,1712955040629,-166.2966251,0.000369,2]
[322324509,1712955040638,-166.2966251,0.000369,2]
[322324512,1712955040647,-166.2966251,0.000369,2]
[322324515,1712955040656,-166.2966251,0.000369,2]
[322324518,1712955040666,-166.2966251,0.000369,2]
[322324521,1712955040676,-166.2966251,0.000369,2]
[322324523,1712955040685,-166.2966251,0.000369,2]
[322324527,1712955040694,-314.041305,0.00036948,42]
[322324529,1712955040703,-1013.42,0.00037,2]
[322324532,1712955040712,-156.315588,0.00037045,7]
[322324535,1712955040721,-3899.50878365,0.00037122,2]
[322324538,1712955040730,-2621.41572254,0.00037122,2]
[322324541,1712955040739,-314.041305,0.00037148,37]
[322324544,1712955040749,-156.47489076,0.00037244,7]
[322324546,1712955040758,-166.2966251,0.00037363,2]
[322324548,1712955040767,-158.5326818,0.00037387,7]
[322324550,1712955040776,-314.041305,0.00037448,41]
[322324552,1712955040786,-367.07,0.000375,3]
[322324554,1712955040796,-367.07,0.000375,3]
[322324556,1712955040805,-367.07,0.000375,3]
[322324559,1712955040814,-367.07,0.000375,3]
[322324561,1712955040823,-367.07,0.000375,3]
[322324564,1712955040832,-367.07,0.000375,3]
[322324567,1712955040842,-367.07,0.000375,3]
[322324570,1712955040851,-367.07,0.000375,3]
[322324573,1712955040860,-367.07,0.000375,3]
[322324576,1712955040870,-367.07,0.000375,3]
[322324579,1712955040882,-367.07,0.000375,3]
[322324583,1712955040894,-367.07,0.000375,3]
[322324586,1712955040903,-367.07,0.000375,3]
[322324589,1712955040912,-367.07,0.000375,3]
[322324592,1712955040922,-367.07,0.000375,3]
[322324595,1712955040931,-367.07,0.000375,3]
[322324598,1712955040940,-367.07,0.000375,3]
[322324601,1712955040950,-367.07,0.000375,3]
[322324604,1712955040960,-367.07,0.000375,3]
[322324607,1712955040970,-367.07,0.000375,3]
[322324610,1712955040979,-155.51,0.000375,3]
[322324613,1712955040989,-155.51,0.000375,3]
[322324616,1712955040998,-155.51,0.000375,3]
[322324640,1712955041108,-155.51,0.000375,3]
[322324643,1712955041117,-154.46915266,0.00037504,7]
[322324646,1712955041126,-296.30994071,0.00037506,8]
[322324650,1712955041137,-314.041305,0.00037648,36]
[322324653,1712955041146,-314.041305,0.00037748,40]
[322324656,1712955041155,-156.47489076,0.00037772,7]
[322324659,1712955041164,-154.92791971,0.00037795,7]
[322324662,1712955041174,-539.0,0.00037808,7]
[322324665,1712955041183,-379.13,0.00037825,2]
[322324668,1712955041192,-314.041305,0.00037848,42]
[322324671,1712955041201,-314.041305,0.00037948,43]
[322324674,1712955041210,-154.73197937,0.00037971,7]
[322324677,1712955041219,-619.16,0.00038027,15]
[322324680,1712955041229,-166.2966251,0.00038041,2]
[322324683,1712955041238,-161.80937704,0.00038052,7]
[322324686,1712955041247,-154.46915266,0.00038103,7]
[322324689,1712955041256,-168.06,0.00038134,2]
[322324692,1712955041266,-314.041305,0.00038148,38]
[322324694,1712955041275,-154.92791971,0.00038238,7]
[322324697,1712955041284,-156.09583247,0.00038267,7]
[322324700,1712955041294,-154.92791971,0.00038343,7]
[322324703,1712955041303,-314.041305,0.00038448,42]
[322324706,1712955041312,-1654.083947,0.000385,2]
[322324709,1712955041322,-160.15436475,0.00038514,7]
[322324712,1712955041331,-150.0,0.00038537,120]
[322324715,1712955041340,-156.47489076,0.00038543,7]
[322324718,1712955041349,-3899.50878365,0.00038567,2]
[322324721,1712955041358,-2621.41572254,0.00038567,2]
[322324724,1712955041368,-296.30994071,0.00038585,9]
[322324727,1712955041378,-150.0,0.000386,19]
[322324730,1712955041387,-314.041305,0.00038648,37]
[322324733,1712955041396,-157.79526644,0.00038671,7]
[322324736,1712955041405,-155.0,0.00038696,4]
[322324739,1712955041415,-443.26682824,0.00038698,7]
[322324742,1712955041424,-166.2966251,0.00038719,2]
[322324745,1712955041433,-314.041305,0.00038748,41]
[322324748,1712955041443,-302.78449251,0.00038833,2]
[322324751,1712955041452,-314.041305,0.00038848,43]
[322324754,1712955041461,-7500.0,0.000389,2]
[322324757,1712955041470,-220.33,0.00038933,2]
[322324760,1712955041480,-200.41,0.00038933,2]
[322324763,1712955041489,-314.041305,0.00038948,44]
[322324766,1712955041498,-158.7304841,0.00038955,7]
[322324769,1712955041507,-150.0,0.00038971,2]
[322324772,1712955041517,-903.21839451,0.00039,4]
[322324775,1712955041526,-539.0,0.00039041,7]
[322324778,1712955041535,-1000.0,0.00039083,2]
[322324781,1712955041546,-314.041305,0.00039148,39]
[322324784,1712955041555,-156.09583247,0.00039165,7]
[322324787,1712955041564,-158.7304841,0.00039259,7]
[322324790,1712955041573,-158.5326818,0.00039336,7]
[322324793,1712955041583,-166.2966251,0.00039398,2]
[322324795,1712955041592,-314.041305,0.00039448,43]
[322324797,1712955041601,-156.47489076,0.00039474,7]
[322324798,1712955041610,-302.7844925,0.00039511,2]
[322324800,1712955041619,-154.92791971,0.00039575,7]
[322324803,1712955041628,-156.09583247,0.00039579,7]
[322324807,1712955041639,-314.041305,0.00039648,38]
[322324810,1712955041648,-296.30994071,0.00039663,9]
[322324813,1712955041658,-314.041305,0.00039748,42]
[322324815,1712955041667,-7278.08536358,0.00039789,5]
[322324822,1712955041688,-314.041305,0.00039848,44]
[322324825,1712955041698,-314.041305,0.00039948,45]
[322324828,1712955041707,-154.92791971,0.00039961,7]
[322324831,1712955041717,-959.05932493,0.0004,30]
[322324834,1712955041727,-1000.0,0.0004,2]
[322324837,1712955041736,-3475.67854378,0.0004,2]
[322324840,1712955041746,-3899.50878365,0.00040011,2]
[322324845,1712955041757,-2621.41572254,0.00040011,2]
[322324852,1712955041794,-166.2966251,0.00040076,2]
[322324857,1712955041813,-379.13,0.00040089,2]
[322324862,1712955041835,-314.041305,0.00040148,40]
[322324868,1712955041856,-302.7844925,0.00040189,2]
[322324872,1712955041876,-156.09583247,0.00040273,30]
[322324875,1712955041894,-539.0,0.00040274,7]
[322324877,1712955041912,-160.15436475,0.00040336,30]
[322324880,1712955041930,-4776.25084633,0.00040351,4]
[322324885,1712955041952,-154.73197937,0.00040378,30]
[322324890,1712955041971,-314.041305,0.00040448,44]
[322324895,1712955041989,-200.0,0.00040498,15]
[322324900,1712955042010,-500.0,0.00040498,20]
[322324904,1712955042025,-160.15436475,0.00040512,30]
[322324907,1712955042038,-154.46915266,0.00040522,30]
[322324912,1712955042056,-156.47489076,0.00040538,30]
[322324916,1712955042072,-314.041305,0.00040648,39]
[322324920,1712955042086,-158.7304841,0.00040648,30]
[322324925,1712955042102,-296.30994071,0.00040742,10]
[322324929,1712955042119,-314.041305,0.00040748,43]
[322324934,1712955042135,-619.16,0.00040767,15]
[322324939,1712955042156,-157.18906211,0.00040777,30]
[322324945,1712955042179,-279.496556,0.00040822,14]
[322324950,1712955042201,-2333.85561288,0.00040846,2]
[322324955,1712955042219,-314.041305,0.00040848,45]
[322324960,1712955042236,-302.7844925,0.00040867,2]
[322324964,1712955042253,-314.041305,0.00040948,46]
[322324968,1712955042268,-158.5326818,0.00040971,30]
[322324973,1712955042284,-162.79,0.00041096,2]
[322324977,1712955042301,-150.27,0.00041096,2]
[322324981,1712955042316,-157.0,0.00041096,2]
[322324986,1712955042331,-3413.0,0.000411,2]
[322324990,1712955042346,-314.041305,0.00041148,41]
[322324994,1712955042361,-158.5326818,0.00041157,30]
[322324999,1712955042376,-154.46915266,0.00041162,30]
[322325003,1712955042391,-367.07,0.000412,4]
[322325007,1712955042407,-367.07,0.000412,4]
[322325012,1712955042423,-367.07,0.000412,4]
[322325015,1712955042438,-367.07,0.000412,4]
[322325018,1712955042454,-367.07,0.000412,4]
[322325022,1712955042469,-367.07,0.000412,4]
[322325025,1712955042483,-367.07,0.000412,4]
[322325029,1712955042498,-367.07,0.000412,4]
[322325033,1712955042513,-367.07,0.000412,4]
[322325036,1712955042527,-367.07,0.000412,4]
[322325040,1712955042542,-367.07,0.000412,4]
[322325043,1712955042556,-367.07,0.000412,4]
[322325047,1712955042571,-367.07,0.000412,4]
[322325050,1712955042585,-367.07,0.000412,4]
[322325054,1712955042601,-367.07,0.000412,4]
[322325057,1712955042616,-367.07,0.000412,4]
[322325060,1712955042635,-367.07,0.000412,4]
[322325062,1712955042655,-367.07,0.000412,4]
[322325066,1712955042672,-367.07,0.000412,4]
[322325069,1712955042689,-367.07,0.000412,4]
[322325074,1712955042707,-155.51,0.000412,4]
[322325078,1712955042723,-155.51,0.000412,4]
[322325082,1712955042738,-155.51,0.000412,4]
[322325085,1712955042753,-155.51,0.000412,4]
[322325089,1712955042769,-29944.33153751,0.000413,30]
[322325093,1712955042784,-156.315588,0.00041368,30]
[322325097,1712955042799,-158.5326818,0.00041406,30]
[322325100,1712955042814,-154.54076185,0.00041421,30]
[322325104,1712955042829,-314.041305,0.00041448,45]
[322325108,1712955042844,-3899.50878365,0.00041456,2]
[322325112,1712955042860,-539.0,0.00041507,7]
[322325116,1712955042875,-302.7844925,0.00041544,2]
[322325119,1712955042893,-156.09583247,0.00041592,30]
[322325123,1712955042908,-279.496556,0.00041644,14]
[322325156,1712955043061,-314.041305,0.00041648,40]
[322325159,1712955043081,-314.041305,0.00041748,44]
[322325162,1712955043090,-296.30994071,0.00041821,10]
[322325165,1712955043099,-314.041305,0.00041848,46]
[322325166,1712955043109,-154.92791971,0.00041863,30]
[322325168,1712955043119,-1011.0,0.000419,7]
[322325170,1712955043128,-7511.06,0.00041902,2]
[322325172,1712955043137,-314.041305,0.00041948,47]
[322325174,1712955043146,-158.7304841,0.00042111,30]
[322325175,1712955043155,-3101.58067104,0.0004213,2]
[322325176,1712955043164,-314.041305,0.00042148,42]
[322325177,1712955043172,-302.7844925,0.00042222,2]
[322325178,1712955043181,-156.315588,0.00042292,30]
[322325179,1712955043190,-1452.28599745,0.00042346,2]
[322325180,1712955043199,-379.13,0.00042352,2]
[322325181,1712955043208,-26377.15611971,0.000424,45]
[322325182,1712955043217,-3101.58067104,0.00042429,2]
[322325183,1712955043227,-314.041305,0.00042448,46]
[322325184,1712955043235,-279.496556,0.00042466,14]
[322325185,1712955043244,-3101.58067104,0.00042481,2]
[322325186,1712955043254,-200.0,0.00042626,20]
[322325188,1712955043263,-1000.0,0.00042636,2]
[322325190,1712955043272,-1452.28599745,0.00042645,2]
[322325192,1712955043282,-314.041305,0.00042648,41]
[322325194,1712955043291,-721.4534,0.000427,2]
[322325196,1712955043303,-543.0,0.00042739,7]
[322325198,1712955043312,-314.041305,0.00042748,45]
[322325200,1712955043321,-1000.0,0.00042756,2]
[322325202,1712955043331,-1000.0,0.00042756,2]
[322325204,1712955043340,-1000.0,0.00042756,2]
[322325206,1712955043349,-1000.0,0.00042756,2]
[322325208,1712955043359,-1000.0,0.00042756,2]
[322325210,1712955043368,-1000.0,0.00042756,2]
[322325212,1712955043379,-1000.0,0.00042756,2]
[322325214,1712955043388,-1000.0,0.00042756,2]
[322325216,1712955043397,-1000.0,0.00042756,2]
[322325218,1712955043407,-1000.0,0.00042756,2]
[322325220,1712955043416,-1000.0,0.00042756,2]
[322325222,1712955043425,-1000.0,0.00042756,2]
[322325224,1712955043435,-1000.0,0.00042756,2]
[322325226,1712955043445,-1000.0,0.00042756,2]
[322325228,1712955043455,-248.3041,0.00042756,2]
[322325230,1712955043465,-6741.814717,0.000428,2]
[322325232,1712955043474,-8032.67921115,0.000428,2]
[322325234,1712955043484,-314.041305,0.00042848,47]
[322325236,1712955043494,-357.07404936,0.0004287,2]
[322325238,1712955043504,-357.07404936,0.0004287,2]
[322325240,1712955043514,-357.07404936,0.0004287,2]
[322325242,1712955043523,-1001.65,0.00042879,2]
[322325244,1712955043532,-948.03728591,0.0004288,2]
[322325246,1712955043542,-1020596.18472977,0.0004288,2]
[322325249,1712955043566,-673.895,0.0004288,2]
[322325251,1712955043577,-1833.72759818,0.0004288,2]
[322325253,1712955043589,-1732.75684899,0.0004288,2]
[322325255,1712955043599,-20050.72586938,0.0004288,2]
[322325257,1712955043611,-38816.59706,0.0004288,2]
[322325260,1712955043622,-41655.862484,0.0004288,2]
[322325262,1712955043634,-40188.70718728,0.0004288,2]
[322325264,1712955043645,-7771.74921159,0.0004288,2]
[322325301,1712955043986,-265.45912741,0.00032593,2]
[322325303,1712955043996,-265.45912741,0.00032779,2]
[322325305,1712955044005,-265.45912741,0.00032779,2]
[322325307,1712955044015,-265.45912741,0.00032779,2]
[322325309,1712955044024,-265.45912741,0.00032779,2]
[322325311,1712955044039,-265.45912741,0.00032779,2]
[322325314,1712955044054,-1053.85119596,0.0004288,2]
[322325316,1712955044066,-6492.89955369,0.0004288,2]
[322325321,1712955044103,-265.45912741,0.00032867,2]
[322325323,1712955044112,-19965.22147259,0.0004288,2]
[322325325,1712955044127,-17232.60116287,0.0004288,2]
[322325328,1712955044139,-3506.35285,0.0004288,2]
[322325330,1712955044154,-443.43736833,0.0004288,2]
[322325333,1712955044166,-468.06261904,0.0004288,2]
[322325335,1712955044182,-265.45912741,0.00033287,2]
[322325338,1712955044192,-220.4940393,0.0004288,2]
[322325340,1712955044204,-1538.7074705,0.0004288,2]
[322325344,1712955044232,-2621.41572254,0.00041456,2]
[322325346,1712955044242,-14946.06070462,0.0004288,2]
[322325414,1712955044969,-265.45912741,0.00033706,2]
[322325417,1712955044982,-265.45912741,0.00033789,2]
[322325419,1712955044992,-265.45912741,0.0003379,2]
[322325421,1712955045003,-265.45912741,0.0003379,2]
[322325423,1712955045013,-265.45912741,0.0003379,2]
[322325425,1712955045023,-265.45912741,0.0003379,2]
[322325426,1712955045035,-265.45912741,0.0003379,2]
[322325428,1712955045051,-265.45912741,0.0003399,2]
[322325431,1712955045065,-265.45912741,0.00034046,2]
[322325432,1712955045076,-166.2966251,0.00040755,2]
[322325435,1712955045087,-15140.2723736,0.0004288,2]
[322325439,1712955045118,-1049.700003,0.0004288,2]
[322325441,1712955045130,-450.180002,0.0004288,2]
[322325443,1712955045144,-705.8369005,0.0004288,2]
[322325445,1712955045157,-858.3132,0.0004288,2]
[322325449,1712955045189,-5658.08342564,0.0004288,2]
[322325451,1712955045202,-3588.8171557,0.0004288,2]
[322325453,1712955045215,-10192.59719953,0.0004288,2]
[322325455,1712955045227,-5617.76763365,0.0004288,2]
[322325458,1712955045246,-3105.02067948,0.0004288,2]
[322325460,1712955045258,-662.5610393,0.0004288,2]
[322325462,1712955045271,-3095.50875739,0.0004288,2]
[322325547,1712955046067,-702.40128296,0.00037499,4]
[322325549,1712955046076,-166.2966251,0.00041433,2]
[322325551,1712955046085,-209029.08384776,0.0004288,2]
[322325556,1712955046124,-44502.69115942,0.0004288,2]
[322325558,1712955046136,-95966.85519899,0.0004288,2]
[322325561,1712955046148,-460300.724411,0.0004288,2]
[322325634,1712955046874,-1481.72291814,0.0004288,2]
[322325636,1712955046888,-676.70442622,0.0004288,2]
[322325640,1712955046914,-590.82,0.0004288,2]
[322325642,1712955046927,-620464.28291561,0.0004288,2]
[322327831,1712955186751,240.06,0.000189,2]
[322327832,1712955186778,3953.75000033,0.000189,2]
[322327837,1712955273604,150.0,0.00015,2]
[322327838,1712955273625,150.0,0.00015,2]
[322327839,1712955273645,150.0,0.00015,2]
[322327840,1712955273665,150.0,0.00015,2]
[322327841,1712955273685,150.0,0.00015,2]
[322327842,1712955273705,150.0,0.00015,2]
[322327843,1712955273727,150.0,0.00015,2]
[322327844,1712955273747,150.0,0.00015,2]
[322327845,1712955273768,150.0,0.00015,2]
[322327846,1712955273788,150.0,0.00015,2]
[322327847,1712955273808,204.32247328,0.00015,2]
[322327848,1712955273832,1344.9027497,0.00015,2]
[322327849,1712955278642,39154.90110338,0.00035352,30]
[322327852,1712955304643,150.5,0.0002099,15]
[322327853,1712955305144,150.5,0.0002098,15]
[322327854,1712955305647,155.0,0.0002097,15]
[322327855,1712955364064,172.43,0.00016712,2]
[322327857,1712955419660,87287.92177715,0.00035466,30]
[322327858,1712955419803,-265.94794723,0.00018899,2]
[322327859,1712955419827,-56383.41239674,0.000189,2]
[322327860,1712955419849,-231.75247328,0.000189,2]
[322327861,1712955419872,-336.8082546,0.000189,2]
[322327862,1712955446268,323.42630436,0.00016712,2]
[322327863,1712955460269,300.0,0.00016712,2]
[322327869,1712955796191,341.8,0.00018478,2]
[322327870,1712955803341,265.94794723,0.00018477,2]
[322327873,1712955939614,-207.17,0.0001985,2]
[322327874,1712955939635,-555.5998,0.00019875,2]
[322327875,1712955939657,-165.55264384,0.000199,2]
[322327876,1712955939677,-23900.0,0.00019913,2]
[322327877,1712955939698,-3158.69872708,0.00019948,2]
[322327878,1712955939718,-2751.0,0.00019975,2]
[322327879,1712955939739,-490.64,0.00020037,2]
[322327880,1712955939760,-859.7,0.00020059,2]
[322327881,1712955939784,-200.0,0.00020087,2]
[322327882,1712955939804,-240.12,0.00020398,2]
[322327883,1712955939825,-19165.62340233,0.000204,2]
[322327885,1712956028163,-667.63,0.00020024,2]
[322327886,1712956028183,-250.0,0.00020056,2]
[322327887,1712956028207,-300.75103195,0.000204,2]
[322327888,1712956028227,-169.87,0.00020521,2]
[322327889,1712956028249,-1841.83111028,0.0002057,2]
[322327890,1712956028270,-1000.0,0.00020614,2]
[322327891,1712956028292,-150.99,0.00020636,2]
[322327892,1712956028314,-341.8,0.00020742,2]
[322327893,1712956028333,-207.39095855,0.000209,2]
[322327894,1712956028356,-165.55264384,0.000209,2]
[322327895,1712956028378,-4213.05166034,0.000209,2]
[322327896,1712956028397,-499.99,0.000209,2]
[322327897,1712956028418,-154.26935566,0.000209,2]
[322327898,1712956028440,-1949.7543919,0.000209,2]
[322327899,1712956028461,-180.00658197,0.000209,2]
[322327900,1712956028482,-7398.87529027,0.000209,2]
[322327901,1712956028502,-4971.02851333,0.000209,2]
[322327902,1712956028522,-316.72153162,0.000209,2]
[322327903,1712956028543,-199.26191228,0.000209,2]
[322327904,1712956028564,-3150.03808332,0.000209,3]
[322327905,1712956028585,-870.04458704,0.000209,2]
[322327906,1712956028607,-502.3137929,0.000209,2]
[322327907,1712956028627,-2900.43231362,0.000209,2]
[322327908,1712956028649,-7398.87529021,0.000209,2]
[322327909,1712956028670,-7398.87529021,0.000209,2]
[322327910,1712956028691,-3506.03562563,0.00020901,2]
[322327911,1712956035122,-3892.83966458,0.00020901,2]
[322327912,1712956035144,-7398.87529021,0.00020901,2]
[322327913,1712956035163,-199.26191227,0.00020901,2]
[322327914,1712956035184,-870.04458702,0.00020901,2]
[322327915,1712956035208,-7398.87529021,0.00020901,2]
[322327916,1712956035228,-7398.87529021,0.00020901,2]
[322327917,1712956035248,-7398.87529021,0.00020902,2]
[322327918,1712956035270,-1145.91669112,0.00020902,2]
[322327919,1712956035335,-3479.02990214,0.00020902,2]
[322327920,1712956037107,-2773.92869695,0.00020902,2]
[322327921,1712956037129,-2201.79,0.00020902,2]
[322327922,1712956037151,-7398.87529021,0.00020902,2]
[322327923,1712956037171,-199.26191227,0.00020902,2]
[322327924,1712956037191,-870.04458702,0.00020902,2]
[322327925,1712956037215,-55622.86976836,0.0002098,2]
[322327926,1712956037235,-154.62,0.0002099,2]
[322327927,1712956037254,-154.62,0.0002099,2]
[322327928,1712956037275,-154.62,0.0002099,2]
[322327929,1712956037298,-154.62,0.0002099,2]
[322327930,1712956037318,-154.62,0.0002099,2]
[322327931,1712956037340,-154.62,0.0002099,2]
[322327932,1712956037366,-329.87253319,0.00020998,2]
[322327933,1712956037386,-4447.22814572,0.00020998,2]
[322327934,1712956037405,-523.01457853,0.00020998,2]
[322327935,1712956037427,-372.13258439,0.00020999,2]
[322327936,1712956037448,-500.0,0.00020999,2]
[322327937,1712956037468,-500.0,0.00020999,2]
[322327938,1712956037489,-561.59751493,0.00020999,2]
[322327939,1712956037510,-500.0,0.00020999,2]
[322327940,1712956037529,-151.381556,0.00020999,2]
[322327941,1712956037553,-77864.5614734,0.00021,2]
[322327942,1712956042109,-23683.69246766,0.00021,2]
[322327943,1712956044097,-19466.37443428,0.00020999,2]
[322327944,1712956044121,-136428.81761428,0.00021,2]
[322327945,1712956049110,-60629.18806307,0.00021,2]
[322327947,1712956064085,800.0,0.000202,7]
[322327948,1712956066178,1700.0,0.000203,7]
[322327949,1712956068308,2500.0,0.000204,7]
[322327950,1712956070942,3400.0,0.000205,7]
[322327951,1712956073069,4200.0,0.000206,7]
[322327952,1712956075239,800.0,0.000207,7]
[322327953,1712956077460,800.0,0.000208,7]
[322327954,1712956082809,800.0,0.000209,7]
[322327990,1712956232641,-1754.77895271,0.000209,2]
[322327991,1712956232651,-6177.55462184,0.000209,2]
[322327992,1712956232660,-316.7215316,0.000209,2]
[322327993,1712956232670,-3674.36617311,0.00020901,2]
[322327994,1712956232682,-364.18813852,0.00020901,2]
[322327995,1712956232694,-1087.10900317,0.00020901,2]
[322327996,1712956232716,-1051.89130704,0.00020901,2]
[322327997,1712956232726,-657.06430346,0.00020902,2]
[322327998,1712956232821,-5520.49031838,0.00020902,2]
[322327999,1712956232832,-155.27580194,0.00020998,2]
[322328000,1712956232842,-464.63554701,0.00020998,2]
[322328001,1712956232852,-7878.76994847,0.00020999,2]
[322328002,1712956232862,-500.0,0.00020999,2]
[322328003,1712956232871,-500.0,0.00020999,2]
[322328004,1712956232880,-500.0,0.00020999,2]
[322328005,1712956232890,-314.75329238,0.00020999,2]
[322328006,1712956232900,-362.43400401,0.00020999,2]
[322328007,1712956232910,-268.02731725,0.00020999,2]
[322328008,1712956232919,-427.31832369,0.00020999,2]
[322328009,1712956232929,-500.0,0.00020999,2]
[322328010,1712956232938,-494.19199998,0.00020999,2]
[322328011,1712956232948,-45554.60385954,0.00021,2]
[322328012,1712956232960,-2881.45068609,0.00021,2]
[322328013,1712956232989,-1164.88987779,0.00021,2]
[322328014,1712956233001,-514.58844735,0.00021,2]
[322328015,1712956233015,-95641.07874318,0.00021,2]
[322328098,1712956239244,-5208.92676619,0.00021,2]
[322328101,1712956239258,-10402126.48848262,0.00021,2]
[322328103,1712956239270,-714.96210186,0.00021,2]
[322328105,1712956239281,-250.0,0.00021,3]
[322328107,1712956239292,-231.2,0.00021,2]
[322328109,1712956239302,-268.71,0.00021,2]
[322328111,1712956239312,-4619429.86524278,0.00021,2]
[322328113,1712956239322,-1754.77895263,0.00021002,2]
[322328116,1712956239331,-1754.77895263,0.00021104,2]
[322328119,1712956239340,-1754.77895263,0.00021206,2]
[322328122,1712956239350,-1754.77895263,0.00021308,2]
[322328124,1712956239360,-1754.77895263,0.0002141,2]
[322328125,1712956239369,-1754.77895263,0.00021512,2]
[322328128,1712956239379,-1754.77895263,0.00021614,2]
[322328129,1712956239389,-1754.77895263,0.00021716,2]
[322328131,1712956239398,-1754.77895263,0.00021818,2]
[322328132,1712956239407,-250.0,0.00021918,2]